Cogmind - Beta 16 @@@ ROGUE MODE // 2025.12.18 @ 19:04:29 Player: TheGamingJasper Result: Self-destructed Performance ------------- Evolutions (1) 500 Regions Visited (2) 400 Robots Destroyed (18) 90 Value Destroyed (407) 407 Prototype IDs (0) 0 Alien Tech Used (0) 0 Bonus (200) 200 TOTAL SCORE: 1597 Bonus ------- Pacifist 200 Cogmind --------- Core Integrity 143/400 Matter 289/300 Energy 160/250 System Corruption 9% Temperature Danger (457) Movement Core (200) Ox3 Location -9/Materials Parts ------- > --- POWER (2) -------- Ion Engine > --- PROPULSION (3) --- (None) > --- UTILITY (2) ------ (None) > --- WEAPON (2) ------- Particle Gun Light EM Pulse Cannon > --- INVENTORY (5) ---- Improved Ion Engine Aluminum Leg Particle Gun Peak State ------------ > --- POWER ------------ Ion Engine Ion Engine > --- PROPULSION ------- Aluminum Leg Aluminum Leg Aluminum Leg > --- UTILITY ---------- Heat Sink > --- WEAPON ----------- Particle Gun Particle Gun > --- INVENTORY -------- Improved Ion Engine Aluminum Leg Particle Gun Particle Gun Light EM Pulse Cannon [Rating: 10] Favorites ----------- Power Ion Engine Engine Ion Engine Propulsion Aluminum Leg Leg Aluminum Leg Utility Heat Sink Device Heat Sink Weapon Medium Laser Energy Gun Medium Laser Energy Cannon Light EM Pulse Cannon Build | -11 -10 -9 ------- Run | Yrd Mat Mat Slots Evolved 2 | . . 2 Power 1 | . . 1 Propulsion 1 | . . 1 Utility . | . . . Weapon . | . . . Parts Attached 13 | 3 3 7 Power 3 | 1 . 2 Engine 3 | 1 . 2 Core . | . . . Reactor . | . . . Propulsion 3 | 2 . 1 Treads . | . . . Leg 3 | 2 . 1 Wheel . | . . . Hover . | . . . Flight . | . . . Utility 1 | . 1 . Device 1 | . 1 . Storage . | . . . Processor . | . . . Hackware . | . . . Protection . | . . . Artifact . | . . . Weapon 6 | . 2 4 Energy Gun 5 | . 2 3 Energy Cannon 1 | . . 1 Ballistic Gun . | . . . Ballistic Cannon . | . . . Launcher . | . . . Special Weapon . | . . . Impact Weapon . | . . . Slashing Weapon . | . . . Piercing Weapon . | . . . Special Melee Weapon . | . . . Unidentified Prototypes . | . . . Parts Lost 7 | . . 7 Power 2 | . . 2 Propulsion 3 | . . 3 Utility 1 | . . 1 Weapon 1 | . . 1 Highest Loss Streak 6 | . . 6 To Critical Strikes . | . . . Average Backups 2 | 3 2 2 Power . | . 1 . Propulsion . | . . . Utility . | . . . Weapon 1 | 2 1 1 Tool/Special . | . . . Unused Backups 5 | . 2 3 Power 1 | . . 1 Propulsion 1 | . . 1 Utility . | . . . Weapon 3 | . 2 1 Tool/Special . | . . . Average Slot Usage (%) 78 | . 74 79 Engine 16 | . 14 17 Leg 28 | . 28 28 Device 10 | . 12 10 Energy Gun 21 | . 19 21 Peak Build Rating 10 | 3 6 10 Average Rating 6 | 2 5 8 On Entrance 3 | . 3 6 Avg Prop Armor Cover (%) . | . . . Naked Turns . | . . . Heaviest Build 17 | 5 10 17 Greatest Support 30 | 20 20 30 Greatest Overweight (x) . | . . . Average Overweight (x) . | . . . Largest Inventory Capacity 5 | 5 5 5 Average Capacity 5 | 5 5 5 Most Carried 5 | 5 5 5 Average Carried 2 | 3 1 2 Final Capacity 5 | 5 5 5 Final Carried 4 | 4 1 3 Class Distribution -------------------- 100% | Mutant Dominant Class ---------------- Mutant | -10/Materials Mutant | -9/Materials Resources | -11 -10 -9 ----------- Run | Yrd Mat Mat Matter Collected 289 | 213 . 76 Remotely . | . . . Salvage Created 655 | . . 655 Parts 38 | . . 38 Haulers Intercepted 2 | . . 2 Recyclers Shooed . | . . . Parts Field Recycled . | . . . Retrieved Matter . | . . . Parts Self-Destructed . | . . . Prevented . | . . . Parts Restored . | . . . Kills | -11 -10 -9 ------- Run | Yrd Mat Mat Combat Hostiles Destroyed 13 | . . 13 Guns 12 | . . 12 Cannons 1 | . . 1 Classes Destroyed 8 | . . 8 Worker 2 | . . 2 Builder 1 | . . 1 Hauler 2 | . . 2 Swarmer 4 | . . 4 Grunt 3 | . . 3 Brawler 2 | . . 2 Duelist 1 | . . 1 Sentry 3 | . . 3 Best Kill Streak 7 | . . 7 Combat Bots Only 6 | . . 6 Max Kills in Single Turn 1 | . . 1 Gunslinging . | . . . Exploded . | . . . Melee . | . . . Uniques/NPCs Destroyed . | . . . Combat | -11 -10 -9 -------- Run | Yrd Mat Mat Hostile Shots Fired 98 | . . 98 Missed 24 | . . 24 Hits 74 | . . 74 Melee 6 | . . 6 Projectile 68 | . . 68 Critical Strikes 3 | . . 3 Damage Taken 997 | . . 997 Core 257 | . . 257 Absorbed by Shields . | . . . Core Remaining (%) 100 | 100 100 . Volleys Fired 49 | . . 49 Largest 2 | . . 2 Hottest 130 | . . 130 Shots Fired 96 | . . 96 Gun 94 | . . 94 Cannon 2 | . . 2 Launcher . | . . . Special . | . . . Kinetic . | . . . Thermal 94 | . . 94 Explosive . | . . . Electromagnetic 2 | . . 2 Robot Hit Streak 16 | . . 16 Robot Miss Streak 3 | . . 3 Penetration Max . | . . . Secondary Targets 2 | . . 2 Max Gunslinging Chain 1 | . . 1 Shots Hit Robots 73 | . . 73 Core Hits 27 | . . 27 Critical Kills . | . . . Critical Parts Destroyed . | . . . Critical Strikes 8 | . . 8 Burn 8 | . . 8 Melee Attacks . | . . . Impact . | . . . Slashing . | . . . Piercing . | . . . Sneak Attacks . | . . . Combat Hostiles . | . . . Follow-up Attacks . | . . . Damage Inflicted 1053 | . . 1053 Guns 1014 | . . 1014 Cannons 39 | . . 39 Explosions . | . . . Melee . | . . . Ramming . | . . . Kinetic . | . . . Thermal 1014 | . . 1014 Explosive . | . . . Electromagnetic 39 | . . 39 Impact . | . . . Slashing . | . . . Piercing . | . . . Highest Corruption 9 | . . 9 Average Corruption 3 | . . 3 Corruption Purged . | . . . Corruption Blocked . | . . . Effects 1 | . . 1 Message Errors 1 | . . 1 Overload Shots . | . . . Overflow Damage . | . . . Projectiles . | . . . Explosions . | . . . Melee . | . . . Knockbacks . | . . . Impact . | . . . Kinetic . | . . . Secondary . | . . . Self-Inflicted Damage . | . . . Shots . | . . . Rammed . | . . . Targets Rammed . | . . . Kicked . | . . . Crushed . | . . . Highest Temperature 451 | . . 451 Average Temperature 126 | . . 126 Received Heat Transfer 306 | . . 306 Effects 7 | . . 7 Shutdowns 2 | . . 2 Energy Bleed 2 | . . 2 Short Circuit 2 | . . 2 Damage (minor) 1 | . . 1 Siege Activations . | . . . Martial Activations . | . . . Shielding Activations . | . . . Robots Disrupted . | . . . Combat Hostiles . | . . . Robots Corrupted . | . . . Combat Hostiles . | . . . Parts Fried . | . . . Impact Corruptions . | . . . Robots Melted 1 | . . 1 Combat Hostiles . | . . . Parts Melted 9 | . . 9 Heat Transferred 3293 | . . 3293 Parts Sabotaged . | . . . Parts Stolen . | . . . Parts Stripped . | . . . Power Chain Reactions . | . . . Alert | -11 -10 -9 ------- Run | Yrd Mat Mat Maximum Alert Level . | . . . Low Security (%) 100 | 100 100 100 Level 1 . | . . . Level 2 . | . . . Level 3 . | . . . Level 4 . | . . . Level 5 . | . . . High Security . | . . . Max Security . | . . . Peak Influence 190 | . . 190 Initial . | . . . Average 37 | . . 54 Influence Increases 390 | . . 390 Destroy 0b10 Robot/C 260 | . . 260 Destroy 0b10 Robot/NC 25 | . . 25 Destroy Leader 74 | . . 74 Destroy Structure 1 | . . 1 Partial Spotted 15 | . . 15 Lose Combat Pursuer 15 | . . 15 Influence Decreases 205 | . . 205 Time Decay 135 | . . 135 Lost Part 70 | . . 70 Squads Dispatched . | . . . Investigation . | . . . Extermination . | . . . Reinforcement . | . . . Assault . | . . . Garrison . | . . . Intercept . | . . . Searches Triggered . | . . . Construction Impeded . | . . . Haulers Reinforced . | . . . Active Scanning Responses . | . . . Cargo Convoy Interrupts . | . . . Stealth | -11 -10 -9 --------- Run | Yrd Mat Mat Distress Signals 2 | . . 2 Communications Jammed . | . . . Distress Signals . | . . . Times Spotted 22 | . 2 20 Peak Tracking Total 10 | . 2 10 Tactical Retreats 1 | . . 1 Traps | -11 -10 -9 ------- Run | Yrd Mat Mat Traps Triggered 1 | . . 1 Indirectly . | . . . Trap Hack Attempts . | . . . Triggered . | . . . Disarmed . | . . . Reprogrammed . | . . . Reused . | . . . Traps Extracted . | . . . Installed . | . . . Triggered . | . . . Machines | -11 -10 -9 ---------- Run | Yrd Mat Mat Machines Disabled . | . . . Max in Single Turn . | . . . Machines Repaired . | . . . Machines Dismantled . | . . . Machines Sabotaged . | . . . Overloaded Fab Kills . | . . . Hacking | -11 -10 -9 --------- Run | Yrd Mat Mat Machines Accessed . | . . . Terminals . | . . . Fabricators . | . . . Repair Stations . | . . . Recycling Units . | . . . Scanalyzers . | . . . Garrison Access . | . . . Total Hacks . | . . . Successful . | . . . Failed . | . . . Catastrophic . | . . . Database Lockouts . | . . . Manual . | . . . Terminals . | . . . Fabricators . | . . . Repair Stations . | . . . Recycling Units . | . . . Scanalyzers . | . . . Garrison Access . | . . . Terminal Hacks . | . . . Fabricator Hacks . | . . . Repair Station Hacks . | . . . Recycling Unit Hacks . | . . . Scanalyzer . | . . . Garrison Access Hacks . | . . . Unauthorized Hacks . | . . . Terminals . | . . . Fabricators . | . . . Repair Stations . | . . . Recycling Units . | . . . Scanalyzers . | . . . Garrison Access . | . . . Data Cores Recovered . | . . . Used . | . . . Hacking Detections . | . . . Full Trace Events . | . . . Feedback Events . | . . . Feedback Blocked . | . . . Robot Schematics Acquired . | . . . Robots Built . | . . . Authchips . | . . . Time . | . . . Total Robot Build Rating . | . . . Part Schematics Acquired . | . . . Parts Built . | . . . Authchips . | . . . Time . | . . . Total Part Build Rating . | . . . Part Studies Acquired . | . . . Parts Repaired . | . . . Time . | . . . Parts Recycled . | . . . Recycled Matter . | . . . Retrieved Matter . | . . . Retrieved Components . | . . . Parts Scanalyzed . | . . . Part Schematics Acquired . | . . . Parts Damaged . | . . . Bothacking | -11 -10 -9 ------------ Run | Yrd Mat Mat Used RIF Installer . | . . . Robots Hacked . | . . . Non-combat . | . . . Combat . | . . . Robot Hacks Applied . | . . . Relay Couplers Released . | . . . Fabnet Peak Effective % . | . . . Robots Rewired . | . . . Allies Hacked . | . . . Hacks Repelled . | . . . Allies | -11 -10 -9 -------- Run | Yrd Mat Mat Total Allies . | . . . Largest Group . | . . . Highest-Rated Group . | . . . Highest-Rated Ally . | . . . Total Orders . | . . . Ally Attacks . | . . . Total Damage . | . . . Kills . | . . . Allies Corrupted . | . . . Allies Melted . | . . . Intel | -11 -10 -9 ------- Run | Yrd Mat Mat Active Infowar (turns) . | . . . Robot Analysis Total . | . . . Derelict Logs Recovered . | . . . Drone Launches . | . . . Drone Recoveries . | . . . Exploration | -11 -10 -9 ------------- Run | Yrd Mat Mat Turns Passed 453 | 59 79 315 Spaces Moved 218 | 42 60 116 Core 9 | 9 . . Treads . | . . . Legs 209 | 33 60 116 Wheels . | . . . Hover . | . . . Flight . | . . . Fastest Speed 50 | 50 120 120 Average Speed 117 | 105 120 120 Slowest Speed 120 | 120 120 120 Overloaded Moves . | . . . Propulsion Burnouts . | . . . Robots Hopped . | . . . Potential Cave-ins . | . . . Cave-ins Triggered . | . . . Exploration Rate (%) 18 | 4 23 27 Regions Visited 2 Branch Regions . Pre-discovered Areas . | . . . Known Exits Taken . | . . . Unknown Exits Taken 2 | 1 1 . Scrap Searched . | . . . Spaces Dug . | . . . Terrain Destroyed . | . . . Melee . | . . . Projectile . | . . . AOE . | . . . Terrain Rammed . | . . . Walls Destroyed . | . . . Machines Disabled . | . . . Actions | -11 -10 -9 --------- Run | Yrd Mat Mat Total 320 | 57 68 195 Wait 21 | 6 2 13 Move 216 | 41 59 116 Hop . | . . . Pick Up 17 | 7 2 8 Fast Attach 1 | . . 1 Attach 10 | 3 3 4 Detach . | . . . Swap 2 | . . 2 Drop 4 | . 2 2 Fire 49 | . . 49 Melee . | . . . Ram . | . . . Kick . | . . . Crush . | . . . Escape Stasis . | . . . Rewire . | . . . Trap . | . . . Miscellaneous . | . . . Route ------- -11/Scrapyard -10/Materials -9/Materials History --------- Turn | Location | Event 7 | -11/Scrapyard | Discovered new exit (range 16) 60 | -11/Scrapyard | Entered Materials 132 | -10/Materials | Discovered new exit (range 8) 139 | -10/Materials | Entered another Materials area 139 | -9/Materials | Evolved 2 slots: Power x1, Propulsion x1 302 | -9/Materials | Build established: Mutant 448 | -9/Materials | Core integrity fell below 50% 454 | -9/Materials | Self-destructed Last Messages --------------- K-01 Serf collects debris. Particle Gun destroyed. Power failure, Ion Engine shutdown. Particle Gun severed. K-01 Serf collects debris. Heat Sink destroyed. Aluminum Leg destroyed. Melee Analysis Suite melted. L-31 Rogue destroyed. K-01 Serf collects debris. Lgt. EM Pulse Cannon broken. Overheating: Short circuit. K-01 Serf collects debris. K-01 Serf destroyed. R-06 Scavenger collects Rnf. Ion Engine. Power failure, Ion Engine shutdown. Overheating: Broken Lgt. EM Pulse Cannon damaged (-13). Particle Gun broken. Overheating: Short circuit. Map ----- +----------------------------------------------------+ | ?????????????????????????????????????????# ? | | ?????????????????????????????????????????#]/! ? | | ?????????????????????????????????????????#]/! ?? | | ?????????????????????????????????????????#// ?? | | ?????????????????????????????????????????# ??? | | ?????????????????????????????????????????# ??? | | ?????????????????????????????????????????#### ???? | | ????????????????????????????????????##"T"######### | | ????????????????????????????????????# * | | ??????????????????????????????????# + | | ????????????????????????????????????? "" """ """ | | ?????????????????????? ????????????????? """ """ | | ?????????????????????? ??????????????????""" """ | | ??????????????????????? ?????????????????? | | ??????????????????????? ??????????????????######## | | ??????????????????????? ??????????????????# | | ??????????????????????? ??????????????????# | | ??????????????????????? ???????????#?????# "" | | ???????????????????????# ???????????# ????# | | ???????????????????????# ???????????# """?# | | ???????????????????????# ???????????# """ # | | ???????????????????????# ???????????? """ # | | ???????????????????????# ######?????? # | | ???????????????????????# *= ??????? # | | ???????????????????????#=*=%#???????? # | | ???????????????????????#!@%=#????????? ""# | | ???????????????????????#[%=g#????????? T"# | | ???????????????????????#[##g########?? ""# """ | | ???????????????????????#Y# =rk #?? ?# """ | | ???????????????????????# # ####+###! """ | | ???????????????????????# # # ^ [[%[% | | ??????????????????????? ?# """ + ^ %=* | | ??????????????????????? + """ """ # !% | | ???????????????????????### """ R" # | | ?????????????????????????# """ # | | ?????????????????????????# # | | ?????????????????????????### #######+############ | | ???????????????????????????##?????? ??????????## | | ??????????????????????????????????? ] ???????????? | | ?????????????????????????????????? [??????????? | | ?????????????????????????????????? ??????????? | | ?????????????????????????????????#######?????????? | | ?????????????????????????????????????????????????? | | ?????????????????????????????????????????????????? | | ?????????????????????????????????????????????????? | | ?????????????????????????????????????????????????? | | ?????????????????????????????????????????????????? | | ?????????????????????????????????????????????????? | | ?????????????????????????????????????????????????? | | ?????????????????????????????????????????????????? | +----------------------------------------------------+ Best States ------------- Heat Dissipation 38 Energy Generation 15 Energy Capacity 400 Matter Stores 300 Matter Capacity 300 Sight Range 16 Terrain Scan Density 10 Evasion (%) 55 Item Schematics ----------------- None Robot Schematics ------------------ None Fabricated ------------ Nothing Repaired ---------- Nothing Studied --------- None Alien Tech Used ----------------- None Achievements -------------- None Challenges ------------ None Game ------ Seed SpreadCargoProcessor Manual? 0 Play Time 00:07:36 Cumulative 17.3 hours Start 2025.12.18 @ 18:54:36 End 2025.12.18 @ 19:04:29 Sessions 1 Manual Loads 0 Difficulty Rogue Special Mode None Game No. 30 Rogue 29 Adventurer 1 Explorer 0 Win Type - Total 0 Types 0/0/0/0/0/0/0/0/0/0 Lore% 4 Gallery% 20 Achievement% 14 Wizard Run 0 Options --------- Layout 1 ASCII 0 Keyboard 0 Movement Arrows Keybinds 0 Fullscreen 1 Font 24/Smallcaps Map View 50x35 Zoom Use 0% Tactical HUD 0 Map Filters NONE Filters NONE Steam 1 RUN: 063bbd21-238e-4521-a101-7403f36be760